bitfinex/quotes_BTCUSD_20250922
["timestamp","ask_amount","ask_price","bid_price","bid_amount"]
[1758548746606,1.13837523,112790.0,112780.0,0.04886307]
[1758548746813,1.13809552,112790.0,112780.0,0.04886307]
[1758548747161,1.13188787,112790.0,112780.0,0.04886307]
[1758548747366,1.13809385,112790.0,112780.0,0.05286307]
[1758548747715,1.13809385,112790.0,112780.0,0.03948324]
[1758548748119,1.61970185,112790.0,112780.0,0.03948324]
[1758548748330,1.13813385,112790.0,112780.0,0.04862324]
[1758548748580,0.31947572,112790.0,112780.0,0.04862324]
[1758548748831,0.37287572,112790.0,112780.0,0.10060677]
[1758548749100,1.04307572,112790.0,112780.0,0.07562324]
[1758548749305,1.04303572,112790.0,112780.0,0.07562324]
[1758548749503,1.13270974,112790.0,112780.0,0.07562324]
[1758548750642,1.13338974,112790.0,112780.0,0.04648324]
[1758548751002,1.13338974,112790.0,112780.0,0.011]
[1758548751186,1.13338974,112790.0,112780.0,0.04648324]
[1758548751395,1.14108974,112790.0,112780.0,0.05144556]
[1758548751535,1.14065974,112790.0,112780.0,0.05144556]
[1758548751736,1.47564974,112790.0,112780.0,0.05144556]
[1758548753370,1.48185243,112790.0,112780.0,0.05144556]
[1758548753550,1.47564974,112790.0,112780.0,0.05144556]
[1758548753986,1.47521974,112790.0,112780.0,0.04444556]
[1758548754189,1.47564974,112790.0,112780.0,0.04444556]
[1758548754541,1.47564974,112790.0,112780.0,0.03848324]
[1758548754749,1.47564974,112790.0,112780.0,0.03548324]
[1758548754926,1.47564974,112790.0,112780.0,0.04548324]
[1758548755278,1.47564974,112790.0,112780.0,0.03548324]
[1758548755678,1.48185258,112790.0,112780.0,0.03648324]
[1758548756512,1.00194258,112790.0,112780.0,0.03648324]
[1758548756713,1.38554258,112790.0,112780.0,0.03648324]
[1758548756971,1.47415258,112790.0,112780.0,0.03648324]
[1758548757278,1.4741513,112790.0,112780.0,0.03648324]
[1758548757433,1.48241978,112790.0,112780.0,0.04283156]
[1758548757631,1.45744678,112790.0,112780.0,0.04283156]
[1758548757853,1.34102078,112790.0,112780.0,0.04491156]
[1758548758061,1.34102078,112790.0,112780.0,0.04283156]
[1758548758270,1.34102013,112790.0,112780.0,0.04283156]
[1758548758646,1.34829013,112790.0,112780.0,0.04283156]
[1758548759851,1.34829006,112790.0,112780.0,0.04283156]
[1758548760803,0.86877006,112790.0,112780.0,0.04283156]
[1758548760981,1.34829006,112790.0,112780.0,0.04283156]
[1758548761186,1.05125906,112790.0,112780.0,0.04491156]
[1758548761384,0.38113906,112790.0,112780.0,0.04815156]
[1758548761584,0.77220156,112790.0,112780.0,0.07247156]
[1758548762097,0.79887264,112790.0,112780.0,0.07247156]
[1758548762298,0.81176759,112790.0,112780.0,0.07247156]
[1758548763089,0.81244759,112790.0,112780.0,0.07247156]
[1758548763698,1.15244759,112790.0,112780.0,0.07247156]
[1758548763917,0.38576759,112790.0,112780.0,0.07247156]
[1758548764314,1.15184759,112790.0,112780.0,0.07247156]
[1758548764548,0.38576759,112790.0,112780.0,0.07247156]
[1758548764690,1.15184759,112790.0,112780.0,0.07247156]
[1758548766140,1.15252759,112790.0,112780.0,0.07247156]
[1758548766323,1.16080844,112790.0,112780.0,0.06923156]
[1758548766526,1.16080844,112790.0,112780.0,0.04283156]
[1758548768005,1.16080844,112790.0,112780.0,0.04491156]
[1758548768125,1.16080844,112790.0,112780.0,0.04283156]
[1758548768325,1.16080844,112790.0,112780.0,0.04491156]
[1758548769167,1.16080844,112790.0,112780.0,0.03648324]
[1758548769603,1.16082028,112790.0,112780.0,0.03648324]
[1758548769816,1.16809028,112790.0,112780.0,0.03648324]
[1758548770214,1.28062028,112790.0,112780.0,0.03648324]
[1758548772358,1.28993234,112790.0,112780.0,0.03648324]
[1758548772557,1.28993234,112790.0,112780.0,0.04288756]
[1758548773445,1.29529962,112790.0,112780.0,0.04288756]
[1758548773990,1.28802962,112790.0,112780.0,0.04288756]
[1758548774803,1.29529962,112790.0,112780.0,0.04288756]
[1758548774999,1.28802962,112790.0,112780.0,0.04288756]
[1758548775356,1.29572962,112790.0,112780.0,0.04288756]
[1758548775554,1.29572962,112790.0,112780.0,0.00740432]
[1758548777143,1.29572962,112790.0,112780.0,0.001]
[1758548778582,1.19964962,112790.0,112780.0,0.001]
[1758548778781,1.29556962,112790.0,112780.0,0.001]
[1758548781185,1.29557662,112790.0,112780.0,0.001]
[1758548781807,1.59557662,112790.0,112780.0,0.001]
[1758548783238,0.34,112780.0,112760.0,0.03548324]
[1758548783447,0.76588,112770.0,112760.0,0.06799456]
[1758548783629,0.41956425,112770.0,112760.0,0.06998456]
[1758548783886,1.21212046,112770.0,112760.0,0.06998456]
[1758548784272,1.09547546,112770.0,112760.0,0.06998456]
[1758548784689,1.09547546,112770.0,112760.0,0.07045405]
[1758548785111,1.09611546,112770.0,112760.0,0.04813405]
[1758548785311,0.67797546,112770.0,112760.0,0.00646949]
[1758548785523,1.44381546,112770.0,112760.0,0.00646949]
[1758548785738,0.67754546,112770.0,112760.0,0.00646949]
[1758548785936,1.46038164,112770.0,112760.0,0.00646949]
[1758548786350,1.48442127,112770.0,112760.0,0.00646949]
[1758548786759,1.46038164,112770.0,112760.0,0.00346949]
[1758548787036,1.46038164,112770.0,112760.0,0.00146949]
[1758548787340,1.46038164,112770.0,112760.0,0.00046949]
[1758548787759,1.45028664,112770.0,112760.0,0.00146949]
[1758548787977,0.67674664,112770.0,112760.0,0.00146949]
[1758548788200,0.67674664,112770.0,112760.0,0.00046949]
[1758548788398,1.44262664,112770.0,112760.0,0.00046949]
[1758548788607,0.67674664,112770.0,112760.0,0.00046949]
[1758548788821,1.44989664,112770.0,112760.0,0.00046949]
[1758548789027,1.45389664,112770.0,112760.0,0.00046949]
[1758548789243,0.68844664,112770.0,112760.0,0.00046949]
[1758548789451,1.45432664,112770.0,112760.0,0.00046949]
[1758548790948,1.83804664,112770.0,112760.0,0.00046949]
[1758548791511,0.68006664,112770.0,112760.0,0.00562949]
[1758548791722,1.26562364,112770.0,112760.0,0.03010949]
[1758548791926,0.76941746,112770.0,112760.0,0.03666876]
[1758548792155,1.24909746,112770.0,112760.0,0.03666876]
[1758548792426,0.76941746,112770.0,112760.0,0.03666876]
[1758548792627,0.37508246,112770.0,112760.0,0.03666876]
[1758548792853,0.61137146,112770.0,112760.0,0.03666876]
[1758548793196,1.37729146,112770.0,112760.0,0.04066876]
[1758548793818,1.37397146,112770.0,112760.0,0.00046949]
[1758548794018,1.37440146,112770.0,112760.0,0.00346949]
[1758548794180,1.7105783,112770.0,112760.0,0.00346949]
[1758548794381,1.7105783,112770.0,112760.0,0.01046949]
[1758548794382,2.05115091,112770.0,112760.0,0.01046949]
[1758548795030,2.05115091,112770.0,112760.0,0.00346949]
[1758548795441,1.73111128,112770.0,112760.0,0.00346949]
[1758548795684,1.69820444,112770.0,112760.0,0.00346949]
[1758548795858,1.69820444,112770.0,112760.0,0.00046949]
[1758548797023,0.62458444,112770.0,112760.0,0.00046949]
[1758548797235,1.78678444,112770.0,112760.0,0.00261949]
[1758548797443,1.79405444,112770.0,112760.0,0.00046949]
[1758548798077,1.77678444,112770.0,112760.0,0.00046949]
[1758548798885,1.78405444,112770.0,112760.0,0.00046949]
[1758548799297,0.61858444,112770.0,112760.0,0.00261949]
[1758548799645,0.91470444,112770.0,112760.0,0.03010949]
[1758548799854,1.39442444,112770.0,112760.0,0.03010949]
[1758548800256,1.39510444,112770.0,112760.0,0.02709949]
[1758548800451,1.39442444,112770.0,112760.0,0.02709949]
[1758548800664,1.39442444,112770.0,112760.0,0.03010949]
[1758548801271,1.39510444,112770.0,112760.0,0.00046949]
[1758548802001,1.40129394,112770.0,112760.0,0.00046949]
[1758548802751,1.40129585,112770.0,112760.0,0.00046949]
[1758548802948,1.40899585,112770.0,112760.0,0.00046949]
[1758548803542,1.40899696,112770.0,112760.0,0.00046949]
[1758548804106,1.40856696,112770.0,112760.0,0.00046949]
[1758548804306,1.40129696,112770.0,112760.0,0.00046949]
[1758548804515,1.40129696,112770.0,112760.0,0.00261949]
[1758548804720,1.40061696,112770.0,112760.0,0.03010949]
[1758548805111,1.40129696,112770.0,112760.0,0.00046949]
[1758548805276,1.40061696,112770.0,112760.0,0.00562949]
[1758548805481,1.10381696,112770.0,112760.0,0.03010949]
[1758548805717,1.38444961,112770.0,112760.0,0.07427685]
[1758548805915,1.38444961,112770.0,112760.0,0.06559273]
[1758548807209,1.3844535,112770.0,112760.0,0.06559273]
[1758548807389,0.6075735,112770.0,112760.0,0.06559273]
[1758548807597,1.3854035,112770.0,112760.0,0.00046949]
[1758548807800,1.76815786,112770.0,112760.0,0.00046949]
[1758548808215,1.73569558,112770.0,112760.0,0.00046949]
[1758548809008,1.73169558,112770.0,112760.0,0.00046949]
[1758548809216,1.73869558,112770.0,112760.0,0.00046949]
[1758548809473,1.7122117,112770.0,112760.0,0.00046949]
[1758548809661,1.7142117,112770.0,112760.0,0.00046949]
[1758548810256,1.72248026,112770.0,112760.0,0.00046949]
[1758548811049,1.92631627,112770.0,112760.0,0.00046949]
[1758548811467,1.90977807,112770.0,112760.0,0.00046949]
[1758548811676,1.92631877,112770.0,112760.0,0.00046949]
[1758548812293,1.94083553,112770.0,112760.0,0.00046949]
[1758548812496,1.91435165,112770.0,112760.0,0.00046949]
[1758548812675,1.94083553,112770.0,112760.0,0.00046949]
[1758548814025,1.90982423,112770.0,112760.0,0.00046949]
[1758548814292,1.76347759,112770.0,112760.0,0.00046949]
[1758548814503,1.73699371,112770.0,112760.0,0.00046949]
[1758548814861,1.76347759,112770.0,112760.0,0.00046949]
[1758548816281,1.73699371,112770.0,112760.0,0.00046949]
[1758548816910,0.96027371,112770.0,112760.0,0.00046949]
[1758548817157,0.93805695,112770.0,112760.0,0.00254949]
[1758548817358,2.09773695,112770.0,112760.0,0.03006949]
[1758548817772,2.09841695,112770.0,112760.0,0.00254949]
[1758548817977,2.09841695,112770.0,112760.0,0.00046949]
[1758548818190,2.09841568,112770.0,112760.0,0.00046949]
[1758548818398,2.13259956,112770.0,112760.0,0.00046949]
[1758548819020,2.13216956,112770.0,112760.0,0.00046949]
[1758548819226,2.13259956,112770.0,112760.0,0.00046949]
[1758548820470,0.93805568,112770.0,112760.0,0.00046949]
[1758548820676,0.93737568,112770.0,112760.0,0.03006949]
[1758548820939,1.71361568,112770.0,112760.0,0.03006949]
[1758548821135,1.71361401,112770.0,112760.0,0.03006949]
[1758548821343,1.71360969,112770.0,112760.0,0.03006949]
[1758548822005,1.71360766,112770.0,112760.0,0.00577949]
[1758548822242,0.93736766,112770.0,112760.0,0.03006949]
[1758548822451,1.71384766,112770.0,112760.0,0.03006949]
[1758548822662,0.63736766,112770.0,112760.0,0.03662476]
[1758548822871,1.41384766,112770.0,112760.0,0.03662476]
[1758548823236,1.41384766,112770.0,112760.0,0.03006949]
[1758548823639,1.41184766,112770.0,112760.0,0.03006949]
[1758548824446,1.41184766,112770.0,112760.0,0.03095296]
[1758548825064,1.40484766,112770.0,112760.0,0.03095296]
[1758548825422,1.40684766,112770.0,112760.0,0.03095296]
[1758548825620,1.40752891,112770.0,112760.0,0.00666296]
[1758548825890,1.40752891,112770.0,112760.0,0.00343296]
[1758548826093,1.73401279,112770.0,112760.0,0.00135296]
[1758548826301,1.70752891,112770.0,112760.0,0.00135296]
[1758548827702,1.70753021,112770.0,112760.0,0.00343296]
[1758548827939,1.51734948,112770.0,112760.0,0.00343296]
[1758548828115,0.44086948,112770.0,112760.0,0.00666296]
[1758548828296,1.24351055,112770.0,112760.0,0.03095296]
[1758548829858,1.24351641,112770.0,112760.0,0.03095296]
[1758548830143,1.24319641,112770.0,112760.0,0.03759658]
[1758548830401,1.24319641,112770.0,112760.0,0.03095296]
[1758548832367,1.24287741,112770.0,112760.0,0.03095296]
[1758548832573,1.24355741,112770.0,112760.0,0.02772296]
[1758548833126,1.24355741,112770.0,112760.0,0.00343296]
[1758548833345,1.27731129,112770.0,112760.0,0.00135296]
[1758548833959,1.25082741,112770.0,112760.0,0.00135296]
[1758548834164,1.56947353,112770.0,112760.0,0.00135296]
[1758548834363,1.57774037,112770.0,112760.0,0.00135296]
[1758548834604,1.5777384,112770.0,112760.0,0.00135296]
[1758548834962,1.1020984,112770.0,112760.0,0.00135296]
[1758548835341,1.8772984,112770.0,112760.0,0.00135296]
[1758548835551,1.9707784,112770.0,112760.0,0.00135296]
[1758548835768,1.8772984,112770.0,112760.0,0.00135296]
[1758548835954,2.05465053,112770.0,112760.0,0.00135296]
[1758548836164,1.85081452,112770.0,112760.0,0.00135296]
[1758548836616,2.23513452,112770.0,112760.0,0.00135296]
[1758548836821,2.21860072,112770.0,112760.0,0.00135296]
[1758548837024,2.23513642,112770.0,112760.0,0.00135296]
[1758548837612,2.23313758,112770.0,112760.0,0.00135296]
[1758548838021,2.23913758,112770.0,112760.0,0.00135296]
[1758548838230,2.41248971,112770.0,112760.0,0.00135296]
[1758548838429,2.41048971,112770.0,112760.0,0.00135296]
[1758548838631,1.08161758,112770.0,112760.0,0.00135296]
[1758548838832,1.08461758,112770.0,112760.0,0.00135296]
[1758548839066,2.14797758,112770.0,112760.0,0.00135296]
[1758548839272,2.24393758,112770.0,112760.0,0.00135296]
[1758548840109,2.14734758,112770.0,112760.0,0.00135296]
[1758548840313,2.24330758,112770.0,112760.0,0.00135296]
[1758548840519,1.08418758,112770.0,112760.0,0.00135296]
[1758548840725,1.85946758,112770.0,112760.0,0.00135296]
[1758548840971,1.08461758,112770.0,112760.0,0.00135296]
[1758548841194,2.24373758,112770.0,112760.0,0.00135296]
[1758548841548,2.24330758,112770.0,112760.0,0.00135296]
[1758548841745,1.07691758,112770.0,112760.0,0.00135296]
[1758548841954,1.85946758,112770.0,112760.0,0.00135296]
[1758548842166,0.34,112760.0,112740.0,0.02379296]
[1758548842373,5.37100695,112760.0,112750.0,0.00312]
[1758548842572,5.37100695,112760.0,112750.0,0.0052]
[1758548842573,0.89197395,112760.0,112750.0,0.0052]
[1758548842797,0.90212051,112760.0,112750.0,0.0052]
[1758548842968,0.8938515,112760.0,112750.0,0.0052]
[1758548843183,0.8938515,112760.0,112750.0,0.04068324]
[1758548843452,1.6255315,112760.0,112750.0,0.04068324]
[1758548843665,1.3120155,112760.0,112750.0,0.04068324]
[1758548844077,1.3120155,112760.0,112750.0,0.06500324]
[1758548844486,1.3120155,112760.0,112750.0,0.0725176]
[1758548845109,0.9223355,112760.0,112750.0,0.0725176]
[1758548845356,1.3137355,112760.0,112750.0,0.0725176]
[1758548845554,1.2332945,112760.0,112750.0,0.0725176]
[1758548846172,1.2332545,112760.0,112750.0,0.0725176]
[1758548847401,0.8418945,112760.0,112750.0,0.0725176]
[1758548847607,0.3728845,112760.0,112750.0,0.0725176]
[1758548847788,0.75796226,112760.0,112750.0,0.0725176]
[1758548848247,0.02668226,112760.0,112750.0,0.1026695]
[1758548848455,0.38384,112780.0,112770.0,0.03548324]
[1758548848665,5.89855483,112780.0,112770.0,0.06450324]
[1758548848873,5.37111683,112780.0,112770.0,0.06450324]
[1758548849029,5.98210883,112780.0,112770.0,0.06450324]
[1758548849235,5.52272883,112780.0,112770.0,0.06450324]
[1758548849635,5.52572883,112780.0,112770.0,0.06450324]
[1758548850234,5.52572327,112780.0,112770.0,0.06450324]
[1758548850426,5.52572241,112780.0,112770.0,0.06450324]
[1758548850710,5.52640241,112780.0,112770.0,0.00198]
[1758548850911,5.52640241,112780.0,112760.0,0.06252324]
[1758548851147,2.238806,112770.0,112760.0,0.03548324]
[1758548851352,2.24500888,112770.0,112750.0,0.06252324]
[1758548851552,2.613114,112760.0,112750.0,0.0687896]
[1758548851983,0.34,112750.0,112740.0,0.03562364]
[1758548852191,3.301015,112750.0,112740.0,0.03562364]
[1758548852374,3.30789538,112750.0,112740.0,0.03562364]
[1758548852610,3.71821926,112750.0,112740.0,0.0001404]
[1758548852812,3.73783539,112750.0,112740.0,0.0001404]
[1758548852962,3.75436666,112750.0,112740.0,0.0001404]
[1758548853164,4.05436666,112750.0,112740.0,0.0001404]
[1758548853369,3.71436666,112750.0,112740.0,0.0001404]
[1758548853964,3.23456666,112750.0,112740.0,0.0001404]
[1758548854162,4.00928666,112750.0,112740.0,0.0001404]
[1758548854614,4.01028666,112750.0,112740.0,0.0001404]
[1758548854772,4.01128666,112750.0,112740.0,0.0001404]
[1758548854992,4.01028666,112750.0,112740.0,0.0001404]
[1758548855190,4.01028209,112750.0,112740.0,0.0001404]
[1758548855405,4.35128209,112750.0,112740.0,0.0001404]
[1758548856297,4.55746129,112750.0,112740.0,0.0001404]
[1758548856534,4.65212995,112750.0,112740.0,0.0001404]
[1758548856756,4.60212995,112750.0,112740.0,0.0001404]
[1758548856987,3.82740995,112750.0,112740.0,0.0001404]
[1758548857216,3.87740995,112750.0,112740.0,0.0001404]
[1758548857501,5.04808199,112750.0,112740.0,0.0001404]
[1758548857907,3.90532199,112750.0,112740.0,0.0011404]
[1758548858131,5.06408199,112750.0,112740.0,0.0011404]
[1758548858352,3.90532199,112750.0,112740.0,0.0011404]
[1758548858563,5.06032199,112750.0,112740.0,0.0001404]
[1758548858789,1.18191608,112740.0,112730.0,0.00724878]
[1758548859019,7.42781878,112740.0,112730.0,0.00733186]
[1758548859231,7.46949068,112740.0,112730.0,0.00733186]
[1758548859423,0.93721131,112730.0,112720.0,0.00024]
[1758548859675,0.93721131,112730.0,112720.0,0.00032331]
[1758548859676,6.26388452,112730.0,112720.0,0.00032331]
[1758548859903,6.27591452,112730.0,112720.0,0.00032331]
[1758548860167,7.14817452,112730.0,112720.0,0.00032331]
[1758548860401,5.98873452,112730.0,112720.0,0.00032331]
[1758548860615,7.14813452,112730.0,112720.0,0.00032331]
[1758548861295,1.21209946,112720.0,112710.0,0.0113569]
[1758548861488,1.21209946,112720.0,112710.0,0.01149779]
[1758548861489,6.53924267,112720.0,112710.0,0.01149779]
[1758548861734,6.31040216,112720.0,112710.0,0.01149779]
[1758548862180,7.46988216,112720.0,112710.0,0.01149779]
[1758548862400,6.00903776,112720.0,112710.0,0.01149779]
[1758548862663,7.19508164,112720.0,112710.0,0.01149779]
[1758548862891,7.16859776,112720.0,112710.0,0.01149779]
[1758548863116,5.99768776,112720.0,112710.0,0.01149779]
[1758548863363,7.69739337,112720.0,112710.0,0.01149779]
[1758548863548,6.50860776,112720.0,112710.0,0.01149779]
[1758548863741,6.49868776,112720.0,112710.0,0.01149779]
[1758548863964,7.87574417,112720.0,112710.0,0.01149779]
[1758548864406,7.87774417,112720.0,112710.0,0.01249779]
[1758548864615,7.98437995,112720.0,112710.0,0.01249779]
[1758548864822,7.98437995,112720.0,112710.0,0.00416212]
[1758548866114,0.9121152,112710.0,112700.0,0.00204275]
[1758548866330,1.21213094,112700.0,112690.0,0.0002]
[1758548866523,6.55055372,112700.0,112690.0,0.0002]
[1758548866695,6.5774676,112700.0,112690.0,0.0002]
[1758548866916,6.74678278,112700.0,112690.0,0.00521]
[1758548867118,6.92492506,112700.0,112690.0,0.0002]
[1758548867418,5.97086278,112700.0,112690.0,0.00521]
[1758548867583,5.97086278,112700.0,112690.0,0.00218]
[1758548867801,5.97086278,112700.0,112690.0,0.00521]
[1758548868001,6.74678278,112700.0,112690.0,0.03322]
[1758548868228,5.97254278,112700.0,112690.0,0.0052]
[1758548868428,7.17029666,112700.0,112690.0,0.0052]
[1758548868628,6.51059352,112700.0,112690.0,0.0052]
[1758548868796,6.51011015,112700.0,112690.0,0.0052]
[1758548868991,6.49919015,112700.0,112690.0,0.0052]
[1758548869191,7.83645243,112700.0,112690.0,0.0052]
[1758548869400,7.17827015,112700.0,112690.0,0.00718]
[1758548869599,6.49851015,112700.0,112690.0,0.03422]
[1758548869813,6.79851015,112700.0,112690.0,0.03422]
[1758548870010,5.85851015,112700.0,112690.0,0.03422]
[1758548870259,5.32326215,112700.0,112690.0,0.03422]
[1758548870456,5.66324875,112700.0,112690.0,0.03422]
[1758548870711,5.65498719,112700.0,112690.0,0.03422]
[1758548871116,5.55910719,112700.0,112690.0,0.03422]
[1758548871320,4.87914719,112700.0,112690.0,0.03422]
[1758548871561,5.65494719,112700.0,112690.0,0.03422]
[1758548871748,4.57914743,112700.0,112690.0,0.03422]
[1758548871946,3.02068643,112700.0,112690.0,0.06970324]
[1758548872581,1.05950675,112700.0,112690.0,0.07739366]
[1758548872824,1.39950675,112700.0,112690.0,0.07739366]
[1758548873246,1.39950675,112700.0,112690.0,0.06970324]
[1758548873885,1.41589862,112700.0,112690.0,0.03422]
[1758548874728,1.41590269,112700.0,112690.0,0.03422]
[1758548875274,1.42410302,112700.0,112690.0,0.03422]
[1758548876445,1.80860492,112700.0,112690.0,0.06970324]
[1758548876653,1.32201189,112700.0,112690.0,0.06970324]
[1758548876973,1.78564379,112700.0,112690.0,0.06970324]
[1758548877094,1.77743974,112700.0,112690.0,0.06970324]
[1758548877547,1.29727974,112700.0,112690.0,0.06970324]
[1758548877850,1.77731974,112700.0,112690.0,0.06970324]
[1758548878062,1.32821516,112700.0,112690.0,0.06970324]
[1758548878178,1.03249516,112700.0,112690.0,0.07739366]
[1758548878384,1.80004838,112700.0,112690.0,0.07739366]
[1758548878836,1.78363482,112700.0,112690.0,0.07739366]
[1758548879075,0.62370074,112700.0,112690.0,0.07739366]
[1758548879261,0.89256,112700.0,112690.0,0.28502359]
[1758548879474,1.23256,112700.0,112690.0,0.10754556]
[1758548879673,1.23256,112700.0,112690.0,0.10354556]
[1758548879875,1.23256,112700.0,112690.0,0.28102359]
[1758548880109,0.501,112700.0,112690.0,0.28602359]
[1758548880324,0.501,112700.0,112690.0,0.28102359]
[1758548880556,0.501,112700.0,112690.0,0.28002359]
[1758548880557,0.5061692,112700.0,112690.0,0.28002359]
[1758548880769,0.8481692,112700.0,112690.0,0.29802359]
[1758548881010,1.1430492,112700.0,112690.0,0.28202359]
[1758548881243,0.8020492,112700.0,112690.0,0.28002359]
[1758548881473,0.8040492,112700.0,112690.0,0.30002359]
[1758548881756,0.5091692,112700.0,112690.0,0.30702359]
[1758548882228,0.003,112700.0,112690.0,0.30702359]
[1758548883664,0.00917676,112700.0,112690.0,0.30702359]
[1758548884365,0.003,112700.0,112690.0,0.30702359]
[1758548884604,0.00917676,112700.0,112690.0,0.30702359]
[1758548885272,0.003,112700.0,112690.0,0.30702359]
[1758548885713,0.00917676,112700.0,112690.0,0.09406232]
[1758548885729,0.00917676,112700.0,112690.0,0.12954556]
[1758548887108,0.00917533,112700.0,112690.0,0.12954556]
[1758548887323,0.00917533,112700.0,112690.0,0.30702359]
[1758548888177,0.00917537,112700.0,112690.0,0.30702359]
[1758548888383,0.00917537,112700.0,112690.0,0.12954556]
[1758548888805,0.00917537,112700.0,112690.0,0.30702359]
[1758548890149,0.003,112700.0,112690.0,0.83486228]
[1758548890705,0.003,112700.0,112690.0,0.30702359]
[1758548890908,0.003,112700.0,112690.0,0.83486228]
[1758548892315,0.003,112700.0,112690.0,0.30702359]
[1758548892518,0.003,112700.0,112690.0,0.83486228]
[1758548892964,0.003,112700.0,112690.0,0.30702359]
[1758548893197,0.003,112700.0,112690.0,0.83486228]
[1758548895087,0.003,112700.0,112690.0,0.92013195]
[1758548895504,0.003,112700.0,112690.0,0.39229326]
[1758548895713,0.003,112700.0,112690.0,0.92013195]
[1758548897403,0.003,112700.0,112690.0,1.21533195]
[1758548898115,0.003,112700.0,112690.0,1.21525195]
[1758548898903,0.003,112700.0,112690.0,0.30702359]
[1758548900253,0.00917567,112700.0,112690.0,0.30702359]
[1758548901662,0.00917567,112700.0,112690.0,0.28301359]
[1758548901912,0.00917567,112700.0,112690.0,0.30638359]
[1758548902516,0.00917567,112700.0,112690.0,0.12890556]
[1758548902842,0.30453567,112700.0,112690.0,0.10250556]
[1758548903274,0.30453567,112700.0,112690.0,0.27998359]
[1758548903890,0.30453567,112700.0,112690.0,0.10052556]
[1758548904066,0.75967229,112700.0,112690.0,0.10052556]
[1758548904228,0.77619517,112700.0,112690.0,0.10052556]
[1758548905187,0.66843517,112700.0,112690.0,0.10266556]
[1758548905393,0.66851517,112700.0,112690.0,0.30672359]
[1758548905951,0.65199229,112700.0,112690.0,0.30672359]
[1758548906343,0.65199229,112700.0,112690.0,0.12924556]
[1758548906548,0.65202755,112700.0,112690.0,0.12924556]
[1758548906744,0.65270755,112700.0,112690.0,0.10052556]
[1758548906949,0.66924186,112700.0,112690.0,0.10052556]
[1758548907155,1.63315986,112700.0,112690.0,0.10052556]
[1758548908352,1.57559355,112700.0,112690.0,0.10052556]
[1758548908568,1.15761255,112700.0,112690.0,0.10052556]
[1758548909132,1.15761255,112700.0,112690.0,0.06268324]
[1758548909133,1.15804255,112700.0,112690.0,0.06268324]
[1758548909335,1.17457187,112700.0,112690.0,0.06268324]
[1758548909934,0.88001187,112700.0,112690.0,0.06268324]
[1758548910311,1.25376255,112700.0,112690.0,0.06268324]
[1758548911360,1.15721255,112700.0,112690.0,0.06268324]
[1758548911559,1.25360255,112700.0,112690.0,0.06967166]
[1758548912010,1.02626655,112700.0,112690.0,0.06967166]
[1758548912193,0.97395033,112700.0,112690.0,0.06967166]
[1758548912809,0.58387033,112700.0,112690.0,0.06967166]
[1758548913186,0.97399033,112700.0,112690.0,0.06967166]
[1758548913620,0.58387033,112700.0,112690.0,0.06967166]
[1758548913764,0.97383033,112700.0,112690.0,0.06967166]
[1758548914171,0.58387033,112700.0,112690.0,0.06967166]
[1758548914567,0.50482133,112700.0,112690.0,0.06967166]
[1758548914774,0.88378133,112700.0,112690.0,0.06967166]
[1758548915292,0.89470133,112700.0,112690.0,0.06967166]
[1758548916365,0.79874133,112700.0,112690.0,0.06967166]
[1758548916514,0.88378133,112700.0,112690.0,0.06967166]
[1758548917568,0.49390133,112700.0,112690.0,0.06967166]
[1758548917846,0.88354133,112700.0,112690.0,0.06967166]
[1758548918888,0.34920033,112700.0,112690.0,0.10181356]
[1758548919102,0.34920033,112700.0,112690.0,0.30898015]
[1758548919308,0.2964,112700.0,112690.0,0.30532159]
[1758548919812,0.29636,112700.0,112690.0,0.30532159]
[1758548920080,0.003,112700.0,112690.0,0.30532159]
[1758548920321,0.29636,112700.0,112690.0,0.30532159]
[1758548920562,0.29632,112700.0,112690.0,0.30532159]
[1758548920807,0.003,112700.0,112690.0,0.30532159]
[1758548921462,0.003,112700.0,112690.0,0.76689797]
[1758548922511,0.003,112700.0,112690.0,0.39059126]
[1758548924123,0.003,112700.0,112690.0,0.76689797]
[1758548925088,0.003,112700.0,112690.0,0.86689797]
[1758548925893,0.002,112700.0,112690.0,1.15333797]
[1758548926061,0.002,112700.0,112690.0,0.49059126]
[1758548926271,0.004,112700.0,112690.0,0.86689797]
[1758548926472,0.002,112700.0,112690.0,1.23617797]
[1758548926971,0.005,112700.0,112690.0,1.27217797]
[1758548927997,0.005,112700.0,112690.0,0.89587126]
[1758548928117,0.005,112700.0,112690.0,1.27217797]
[1758548928549,0.005,112700.0,112690.0,1.3399583]
[1758548929815,0.005,112700.0,112690.0,0.57437159]
[1758548930080,0.005,112700.0,112690.0,0.96409159]
[1758548930274,0.005,112700.0,112690.0,1.3403983]
[1758548931516,0.005,112700.0,112690.0,1.35136122]
[1758548931721,0.005,112700.0,112690.0,0.96164122]
[1758548931919,0.005,112700.0,112690.0,0.96385159]
[1758548932103,0.005,112700.0,112690.0,1.3401583]
[1758548932953,8.312e-05,112710.0,112700.0,0.34309742]
[1758548933158,8.312e-05,112710.0,112700.0,0.91597347]
[1758548933362,8.312e-05,112710.0,112700.0,0.91796347]
[1758548933569,8.312e-05,112710.0,112700.0,1.21156347]
[1758548935208,0.00108312,112710.0,112700.0,1.22256347]
[1758548935416,0.00108312,112710.0,112700.0,1.23356347]
[1758548936843,1e-08,112710.0,112700.0,1.60987018]
[1758548937021,1e-08,112710.0,112700.0,1.94987018]
[1758548938948,1e-08,112710.0,112700.0,2.04543018]
[1758548942535,1e-08,112710.0,112700.0,2.31513018]
[1758548943167,1e-08,112710.0,112700.0,2.76313018]
[1758548943385,0.07126631,112750.0,112740.0,0.24303446]
[1758548943599,0.07140719,112750.0,112740.0,0.95406471]
[1758548943842,0.07208719,112750.0,112740.0,0.95406471]
[1758548944076,0.00082088,112750.0,112740.0,0.95406471]
[1758548944288,0.00014088,112750.0,112740.0,1.04441438]
[1758548944504,0.00014088,112750.0,112740.0,0.74078767]
[1758548944723,0.00014088,112750.0,112740.0,1.11709438]
[1758548944926,0.00014088,112750.0,112740.0,1.12309438]
[1758548945144,0.00014088,112750.0,112740.0,1.11709438]
[1758548945363,0.00014088,112750.0,112740.0,0.74078767]
[1758548945595,0.00114088,112750.0,112740.0,0.76578767]
[1758548945818,0.00014088,112750.0,112740.0,1.16709438]
[1758548946695,0.00114088,112750.0,112740.0,1.18809438]
[1758548946895,0.00214088,112750.0,112740.0,0.90041438]
[1758548947455,0.00114088,112750.0,112740.0,0.89541438]
[1758548947666,0.00182088,112750.0,112740.0,0.83066767]
[1758548947895,0.00182088,112750.0,112740.0,0.78066767]
[1758548948107,0.00182088,112750.0,112740.0,1.15697438]
[1758548948317,0.00182088,112750.0,112740.0,0.39134767]
[1758548948534,0.01317088,112750.0,112740.0,0.68462767]
[1758548948756,0.01417088,112750.0,112740.0,0.76075845]
[1758548948964,0.01374088,112750.0,112740.0,0.76075845]
[1758548949597,0.00282088,112750.0,112740.0,0.76075845]
[1758548949825,0.01374088,112750.0,112740.0,0.46747845]
[1758548950049,0.01374088,112750.0,112740.0,0.35205688]